bitfinex-derivatives/quotes_ETHF0:USTF0_20250114
["timestamp","ask_amount","ask_price","bid_price","bid_amount"]
[1736834916340,0.941,3168.8,3168.7,2.53622182]
[1736834916541,0.941,3168.8,3168.7,2.85198182]
[1736834917042,0.941,3168.8,3168.7,43.65198182]
[1736834918041,0.4562,3168.8,3168.7,43.65198182]
[1736834918341,0.4623,3169.0,3168.9,0.31574]
[1736834919045,0.4623,3169.0,3168.9,41.11574]
[1736834919646,0.4675,3169.3,3169.2,0.31571]
[1736834920034,0.4675,3169.3,3169.2,1.55871]
[1736834920347,0.4675,3169.3,3169.2,42.35871]
[1736834920844,0.4675,3169.3,3169.2,42.043]
[1736834921350,0.9266,3169.3,3169.2,42.043]
[1736834922345,0.9266,3169.3,3169.2,42.35871]
[1736834923044,0.4675,3169.3,3169.2,42.35871]
[1736834923847,0.4923,3169.4,3169.2,42.35871]
[1736834925140,0.80799,3169.4,3169.2,42.043]
[1736834925340,1.26779,3169.4,3169.2,1.243]
[1736834925541,1.75209,3169.4,3169.2,1.243]
[1736834925745,1.4364,3169.4,3169.3,43.33622182]
[1736834927942,1.75209,3169.4,3169.3,43.33622182]
[1736834929454,1.75209,3169.4,3169.3,43.01942182]
[1736834937247,1.75209,3169.4,3169.3,40.8]
[1736834941646,4.28831182,3169.4,3169.3,40.8]
[1736834942047,1.4364,3169.4,3168.9,3.2078]
[1736834942257,0.31571,3169.2,3168.9,3.2078]
[1736834943050,0.31572,3169.1,3168.9,3.2078]
[1736834943459,0.31572,3169.1,3169.0,40.8]
[1736834943847,1.4364,3169.4,3169.0,40.8]
[1736834944050,1.4364,3169.4,3169.3,0.3157]
[1736834944655,1.4364,3169.4,3169.3,41.1157]
[1736834945453,3.2078,3169.6,3169.3,40.8]
[1736834945655,3.2078,3169.6,3169.5,2.53622182]
[1736834946258,4.6652,3169.6,3169.5,43.33622182]
[1736834946960,1.4574,3169.6,3169.5,43.65190182]
[1736834949571,3.2078,3170.4,3169.5,40.8]
[1736834949871,4.6071,3170.4,3170.3,2.53622182]
[1736834950260,4.92269,3170.4,3170.3,2.53622182]
[1736834950461,4.6071,3170.4,3170.3,43.33622182]
[1736834950958,3.6708,3170.4,3170.3,43.65182182]
[1736834951176,0.316,3170.6,3170.3,43.33622182]
[1736834951465,0.316,3170.6,3170.5,0.31558]
[1736834952163,0.316,3170.8,3170.7,0.31556]
[1736834952357,0.316,3170.8,3170.7,4.09278182]
[1736834953063,0.316,3170.8,3170.7,44.89278182]
[1736834953654,3.2078,3170.9,3170.8,0.31555]
[1736834954057,0.9257,3171.0,3170.8,0.31555]
[1736834954359,0.463,3171.0,3170.9,0.31554]
[1736834954661,0.463,3171.0,3170.9,41.11554]
[1736834954964,0.4808,3171.2,3170.9,41.11554]
[1736834955156,0.4808,3171.2,3171.0,2.53622182]
[1736834955353,3.2078,3171.3,3171.0,2.85174182]
[1736834955564,3.2078,3171.3,3171.1,0.31551]
[1736834955866,3.5233,3171.3,3171.0,3.30144182]
[1736834956063,3.5233,3171.3,3171.0,2.98592182]
[1736834957468,3.5233,3171.3,3171.0,3.30145182]
[1736834957654,3.5233,3171.3,3171.0,2.98592182]
[1736834958267,0.31552,3171.2,3171.0,2.53622182]
[1736834958465,0.31553,3171.0,3170.9,40.8]
[1736834958667,0.63153,3171.0,3170.9,40.8]
[1736834959162,0.316,3171.0,3170.9,40.8]
[1736834959567,0.316,3171.0,3170.9,41.11554]
[1736834959866,0.316,3171.2,3171.1,0.31552]
[1736834960368,0.316,3171.2,3171.0,2.53622182]
[1736834960566,0.63151,3171.2,3171.1,40.8]
[1736834963674,0.316,3171.2,3170.7,4.09277182]
[1736834963966,0.316,3171.0,3170.7,4.09277182]
[1736834964368,1.2553,3171.0,3170.7,4.09277182]
[1736834964574,1.2553,3171.0,3170.8,0.31555]
[1736834964774,1.57083,3171.0,3170.9,40.8]
[1736834968681,1.2553,3171.0,3170.9,40.8]
[1736834970080,1.2553,3171.0,3170.9,41.11554]
[1736834970780,1.2553,3171.0,3170.9,40.8]
[1736834971081,1.2553,3171.0,3170.9,41.11554]
[1736834972675,0.316,3171.2,3171.1,0.31552]
[1736834973483,0.316,3171.2,3171.1,41.11552]
[1736834979779,0.63151,3171.2,3171.1,40.8]
[1736834980175,0.63151,3171.2,3171.1,42.04]
[1736834981778,0.63151,3171.2,3171.1,40.8]
[1736834982178,3.83931,3171.2,3171.1,40.8]
[1736834982383,6.37553182,3171.2,3171.1,40.8]
[1736834982574,0.31558,3170.5,3170.4,3.2078]
[1736834982883,3.2078,3170.8,3170.1,1.24]
[1736834983079,0.31561,3170.2,3170.1,1.24]
[1736834983283,0.9596,3170.4,3170.0,3.2078]
[1736834983487,0.31562,3170.1,3170.0,3.2078]
[1736834983686,0.31562,3170.1,3170.0,4.4478]
[1736834983883,0.31562,3170.1,3169.3,0.25644229]
[1736834983884,3.2078,3170.3,3169.4,5.74402182]
[1736834984182,6.05962182,3170.3,3170.2,40.8]
[1736834984381,3.5234,3170.3,3170.2,40.8]
[1736834985576,3.2078,3170.3,3170.2,40.8]
[1736834985979,0.4721,3170.4,3170.2,40.8]
[1736834986182,0.4721,3170.4,3170.3,4.09182182]
[1736834986683,0.4721,3170.4,3170.3,7.29962182]
[1736834986888,0.4748,3170.8,3170.3,47.78402182]
[1736834987395,0.455,3170.7,3170.3,47.78402182]
[1736834987587,0.77056,3170.7,3170.3,47.78402182]
[1736834987888,0.77056,3170.7,3170.4,0.31558]
[1736834988788,0.31557,3170.6,3170.4,0.31558]
[1736834989087,0.77056,3170.7,3170.4,0.31558]
[1736834989487,0.31557,3170.6,3170.4,0.31558]
[1736834989789,0.77056,3170.7,3170.4,0.31558]
[1736834990083,0.455,3170.7,3170.5,0.31557]
[1736834992283,0.455,3170.7,3170.6,40.8]
[1736834993793,0.77056,3170.7,3170.6,40.8]
[1736834994193,3.97836,3170.7,3170.6,40.8]
[1736834996885,3.6628,3170.7,3170.6,41.11557]
[1736834997089,3.6628,3170.7,3170.6,43.65179182]
[1736834997895,3.6628,3170.7,3170.6,43.33622182]
[1736834998789,3.97836,3170.7,3170.6,43.33622182]
[1736834999395,0.316,3171.0,3170.9,0.31554]
[1736834999599,0.316,3171.0,3170.9,2.85176182]
[1736835000101,0.316,3171.0,3170.9,43.65176182]
[1736835000595,0.316,3171.0,3170.9,46.85956182]
[1736835000796,0.316,3171.0,3170.9,44.32334]
[1736835001398,0.316,3171.2,3170.9,44.0078]
[1736835001594,0.316,3171.2,3171.1,2.85174182]
[1736835002194,0.316,3171.2,3171.1,43.65174182]
[1736835004788,0.316,3171.2,3171.1,43.33622182]
[1736835004994,0.316,3171.2,3171.1,43.65174182]
[1736835005195,0.31544,3171.9,3171.1,48.33622182]
[1736835005500,0.316,3171.8,3171.7,2.85168182]
[1736835005710,0.316,3171.8,3171.7,3.78322182]
[1736835005894,0.316,3171.8,3171.7,4.09868182]
[1736835006398,0.316,3171.8,3171.7,44.89558374]
[1736835006598,0.316,3171.8,3171.7,44.58012374]
[1736835006801,0.316,3171.9,3171.7,44.58012374]
[1736835007196,0.316,3171.9,3171.7,47.78792374]
[1736835007388,0.316,3171.9,3171.8,0.46995]
[1736835007700,0.316,3171.9,3171.8,0.15345]
[1736835007902,0.316,3171.9,3171.7,6.98792374]
[1736835008097,0.316,3171.9,3171.8,41.11545]
[1736835009802,0.316,3171.9,3171.8,46.11545]
[1736835010104,0.31538,3172.5,3172.1,0.31541]
[1736835010398,0.31538,3172.5,3172.2,2.85163182]
[1736835011301,0.316,3172.4,3172.2,2.85163182]
[1736835012802,0.316,3172.5,3172.2,2.53622182]
[1736835013194,0.316,3172.5,3172.2,2.85162182]
[1736835013195,0.63138,3172.5,3172.2,2.85162182]
[1736835013505,0.316,3172.5,3172.4,40.8]
[1736835013699,0.63138,3172.5,3172.4,42.047]
[1736835015805,0.316,3172.5,3172.4,42.36239]
[1736835016402,0.70185988,3173.0,3172.4,42.36239]
[1736835016403,0.316,3173.3,3173.1,0.31531]
[1736835016601,0.316,3173.3,3173.2,1.247]
[1736835016907,0.316,3173.1,3172.8,0.31534]
[1736835017101,0.316,3173.1,3172.5,3.2078]
[1736835017413,0.63132,3173.1,3173.0,40.8]
[1736835018510,0.316,3173.1,3172.6,0.31536]
[1736835018711,0.316,3172.9,3172.5,1.24646]
[1736835019012,0.316,3172.7,3172.6,0.31536]
[1736835019603,0.316,3172.7,3172.6,41.11536]
[1736835019810,0.63136,3172.7,3172.6,40.8]
[1736835021612,0.63136,3172.7,3172.6,42.047]
[1736835021809,0.63136,3172.7,3172.6,40.8]
[1736835029013,0.63137,3172.6,3172.5,1.247]
[1736835029213,1.09157,3172.6,3172.5,1.247]
[1736835030011,1.09157,3172.6,3172.5,42.047]
[1736835037825,1.09157,3172.6,3172.5,40.8]
[1736835038025,0.6314,3172.3,3172.2,1.254]
[1736835039032,0.6314,3172.3,3172.2,41.7381]
[1736835039231,0.6314,3172.3,3172.2,40.8]
[1736835041633,0.3155,3171.3,3171.2,3.00932182]
[1736835041830,0.3155,3171.3,3171.2,4.26332182]
[1736835042137,3.2078,3171.7,3171.2,4.26332182]
[1736835042330,0.3155,3171.4,3171.2,4.26332182]
[1736835042530,0.3155,3171.4,3171.3,40.8]
[1736835049843,0.3155,3171.4,3171.3,42.054]
[1736835053947,1.75,3171.8,3171.3,42.054]
[1736835054242,0.316,3171.8,3171.6,2.53622182]
[1736835054440,0.63145,3171.8,3171.6,2.53622182]
[1736835054642,0.63145,3171.8,3171.7,40.8]
[1736835055148,0.316,3171.8,3171.7,40.8]
[1736835055647,0.316,3171.8,3171.7,41.11546]
[1736835056247,0.316,3172.0,3171.8,0.31544]
[1736835056443,0.63143,3172.0,3171.7,41.11545]
[1736835056649,0.63143,3172.0,3171.8,0.31545]
[1736835057843,0.316,3172.1,3171.7,40.8]
[1736835058048,1.432,3172.2,3171.7,40.8]
[1736835058049,0.63145,3171.8,3171.7,40.8]
[1736835059652,0.63145,3171.8,3171.6,2.85169182]
[1736835060453,0.316,3171.7,3171.6,2.85169182]
[1736835061054,0.316,3171.7,3171.6,43.65169182]
[1736835061547,0.316,3171.8,3171.6,46.85949182]
[1736835063654,0.316,3171.7,3171.6,46.54402182]
[1736835063856,1.7316,3171.7,3171.6,44.0078]
[1736835064047,2.04706,3171.7,3171.6,45.2538]
[1736835065958,5.25486,3171.7,3171.6,40.8]
[1736835069559,0.3155,3171.3,3171.2,1.246]
[1736835070654,0.3155,3171.3,3171.2,42.046]
[1736835078665,0.316,3171.5,3171.2,42.046]
[1736835078863,0.316,3171.5,3171.4,2.85171182]
[1736835079256,0.316,3171.5,3171.4,43.65171182]
[1736835079857,0.316,3171.8,3171.4,43.33622182]
[1736835080262,0.63148,3171.5,3171.4,40.8]
[1736835081050,0.316,3171.5,3171.4,40.8]
[1736835081766,1.265,3171.5,3171.4,40.8]
[1736835081959,1.58048,3171.5,3171.4,40.8]
[1736835082362,1.265,3171.5,3171.4,40.8]
[1736835082859,0.316,3171.5,3171.4,43.33622182]
[1736835083064,0.316,3171.5,3171.4,43.65171182]
[1736835083765,0.316,3171.7,3171.4,43.33622182]
[1736835083967,0.316,3171.7,3171.6,2.85169182]
[1736835084666,0.316,3171.7,3171.6,43.65169182]
[1736835086977,0.63146,3171.7,3171.6,42.046]
[1736835087177,0.63146,3171.7,3171.6,44.58222182]
[1736835087769,0.316,3171.7,3171.6,44.58222182]
[1736835088272,0.63146,3171.7,3171.6,44.58222182]
[1736835088469,0.63146,3171.7,3171.6,40.8]
[1736835088678,0.63146,3171.7,3171.6,42.041]
[1736835089767,0.63146,3171.7,3171.6,1.241]
[1736835090071,0.31551,3171.3,3171.0,2.85175182]
[1736835090374,0.316,3171.5,3171.0,2.85175182]
[1736835090567,0.31551,3171.2,3171.1,1.241]
[1736835090871,0.31551,3171.2,3171.1,42.041]
[1736835094368,0.316,3171.5,3171.1,42.041]
[1736835094574,0.31551,3171.2,3171.1,42.041]
[1736835096767,0.31551,3171.2,3171.1,40.8]
[1736835096970,3.52331,3171.2,3171.1,40.8]
[1736835098569,3.52331,3171.2,3171.1,43.33622182]
[1736835098765,0.316,3171.5,3171.4,0.31549]
[1736835098969,3.2078,3172.1,3171.4,5.74402182]
[1736835098970,0.316,3171.8,3171.4,5.74402182]
[1736835099271,0.316,3171.8,3171.7,2.85168182]
[1736835099573,0.316,3171.8,3171.7,44.89268182]
[1736835099773,0.316,3171.8,3171.7,42.35646]
[1736835100079,0.316,3171.9,3171.8,0.31545]
[1736835100970,0.316,3172.0,3171.8,41.11545]
[1736835101576,0.63143,3172.0,3171.8,40.8]
[1736835101779,0.316,3172.0,3171.8,41.11544]
[1736835102178,0.316,3171.9,3171.8,41.11545]
[1736835103075,0.316,3171.9,3171.8,40.8]
[1736835103271,0.316,3171.9,3171.8,41.11545]
[1736835103877,0.316,3171.9,3171.8,40.8]
[1736835104178,0.316,3172.0,3171.8,40.8]
[1736835104373,1.2626,3171.9,3171.8,41.11545]
[1736835105183,1.2626,3171.9,3171.8,40.8]
[1736835105381,1.2626,3171.9,3171.8,41.11545]
[1736835110078,0.316,3172.2,3171.7,3.77722182]
[1736835110279,0.7741,3172.2,3172.1,0.31542]
[1736835110988,0.7741,3172.2,3172.1,40.8]
[1736835113000,0.7741,3172.2,3172.1,41.11542]
[1736835113903,0.7741,3172.2,3172.1,40.8]
[1736835114103,0.7741,3172.2,3172.1,41.11542]
[1736835114500,3.45709219,3173.3,3172.2,0.78852]
[1736835114702,0.316,3173.2,3173.1,0.31531]
[1736835114897,0.316,3173.2,3173.1,1.55631]
[1736835115102,0.316,3173.2,3173.1,1.23981]
[1736835115304,0.316,3173.2,3173.1,41.40681]
[1736835115694,0.316,3173.2,3173.1,1.55631]
[1736835115900,0.316,3173.2,3173.1,1.23981]
[1736835116095,0.316,3173.2,3173.1,1.55512]
[1736835116305,0.316,3173.2,3173.1,0.92212]
[1736835116608,0.316,3173.2,3173.1,0.60562]
[1736835116803,0.316,3173.2,3173.1,42.041]
[1736835117002,0.316,3173.2,3173.1,3.77603182]
[1736835117708,0.316,3173.2,3173.1,3.14303182]
[1736835117897,0.316,3173.2,3173.1,42.35631]
[1736835118100,0.316,3173.2,3173.1,41.72331]
[1736835118304,0.316,3173.2,3173.1,42.03862]
[1736835118507,0.316,3173.2,3173.1,41.72212]
[1736835118695,0.316,3173.2,3173.1,1.57131]
[1736835119102,0.316,3173.2,3173.1,1.25481]
[1736835119911,0.316,3173.2,3173.1,42.37012]
[1736835120309,0.316,3173.2,3173.1,42.05481]
[1736835120511,0.316,3173.2,3173.1,42.37013]
[1736835120704,0.316,3173.2,3173.1,42.05481]
[1736835121613,0.316,3173.2,3173.1,42.37013]
[1736835122408,0.316,3173.2,3173.1,42.05481]
[1736835123911,0.316,3173.2,3173.1,41.73891]
[1736835124110,0.316,3173.2,3173.1,41.10621]
[1736835124314,0.316,3173.2,3173.1,1.256]
[1736835124518,0.316,3173.2,3173.1,0.9401]
[1736835125417,0.316,3173.2,3173.1,41.7401]
[1736835126618,0.63131,3173.2,3173.1,41.7401]
[1736835127118,0.316,3173.2,3173.1,41.7401]
[1736835127919,0.63131,3173.2,3173.1,41.7401]
[1736835128715,0.316,3173.2,3173.1,41.7401]
[1736835131420,0.63131,3173.2,3173.1,41.7401]
[1736835132420,0.316,3173.2,3173.1,41.7401]
[1736835134124,0.316,3173.2,3173.1,40.8]
[1736835134422,0.316,3173.2,3173.1,42.056]
[1736835135023,0.63131,3173.2,3173.1,42.056]
[1736835136122,0.316,3173.2,3173.1,42.056]
[1736835136723,0.63131,3173.2,3173.1,42.056]
[1736835137826,0.316,3173.2,3173.1,42.056]
[1736835138726,0.316,3173.2,3173.1,0.9401]
[1736835138915,0.316,3173.2,3173.1,0.6242]
[1736835139618,0.316,3173.2,3173.1,41.4242]
[1736835140016,0.63131,3173.2,3173.1,41.4242]
[1736835140221,0.316,3173.2,3173.1,41.4242]
[1736835141415,0.63131,3173.2,3173.1,41.4242]
[1736835146735,0.63131,3173.2,3173.1,40.8]
[1736835147032,0.63131,3173.2,3172.0,0.31542]
[1736835147033,0.31542,3172.2,3172.1,1.256]
[1736835147937,0.31542,3172.2,3172.1,42.056]
[1736835148323,0.31542,3172.2,3172.1,40.8]
[1736835148523,0.63142,3172.2,3172.1,42.048]
[1736835149333,0.63142,3172.2,3172.1,40.8]
[1736835149532,0.63142,3172.2,3172.1,42.048]
[1736835150127,0.63142,3172.2,3172.1,40.8]
[1736835151033,0.63142,3172.2,3172.1,43.33622182]
[1736835153540,0.31542,3172.2,3172.1,43.33622182]
[1736835159937,0.31542,3172.2,3172.1,40.8]
[1736835160144,0.31551,3171.2,3171.1,4.4558]
[1736835160339,0.31551,3171.2,3171.1,6.99202182]
[1736835161041,0.31554,3170.9,3170.8,1.248]
[1736835161342,0.31553,3171.0,3170.8,3.78422182]
[1736835161542,0.31553,3171.0,3170.9,40.8]
[1736835162133,1.4186,3171.5,3170.9,40.8]
[1736835162336,0.9454,3171.5,3171.4,2.53622182]
[1736835162537,3.2078,3172.0,3171.4,2.53622182]
[1736835162538,0.4801,3171.8,3171.4,2.53622182]
[1736835162833,0.79555,3171.8,3171.7,2.53622182]
[1736835163037,0.79555,3171.8,3171.7,43.33622182]
[1736835163742,0.79555,3171.8,3171.7,43.02032182]
[1736835171654,0.4801,3171.8,3171.7,43.02032182]
[1736835171949,3.52323,3172.0,3171.7,43.33577182]
[1736835172151,3.52323,3172.0,3171.7,2.53577182]
[1736835172646,3.52323,3172.0,3171.9,40.8]
[1736835173955,0.31544,3171.9,3171.7,2.53577182]
[1736835174353,3.2078,3172.0,3171.9,0.31544]
[1736835174651,3.2078,3172.0,3171.7,2.22032182]
[1736835174652,3.52323,3172.0,3171.8,0.31544]
[1736835174848,3.2078,3172.0,3171.9,40.8]
[1736835176257,3.2078,3172.0,3171.9,41.11544]
[1736835177458,0.78822,3172.1,3171.9,41.11544]
[1736835177661,0.78822,3172.1,3172.0,2.53622182]
[1736835178360,0.78822,3172.1,3172.0,43.33622182]
[1736835183966,0.78822,3172.1,3172.0,43.02032182]
[1736835185460,0.4728,3172.1,3172.0,43.02032182]
[1736835185664,0.316,3172.5,3172.4,0.31539]
[1736835185864,0.316,3172.8,3172.4,6.98502182]
[1736835186065,0.316,3172.8,3172.7,2.85158182]
[1736835186461,0.316,3172.8,3172.7,43.65158182]
[1736835186663,0.316,3173.0,3172.8,0.31535]
[1736835186965,0.316,3173.0,3172.8,0.48015]
[1736835187265,0.63133,3173.0,3172.8,0.48015]
[1736835187962,0.63134,3172.9,3172.8,0.48015]
[1736835188270,1.12664,3172.9,3172.8,0.48015]
[1736835188862,1.12664,3172.9,3172.7,2.85158182]
[1736835189368,0.8113,3172.9,3172.7,2.53622182]
[1736835189563,0.63135,3172.8,3172.7,2.53622182]
[1736835189972,0.63135,3172.8,3172.7,44.57622182]
[1736835190157,1.59065,3172.8,3172.7,44.57622182]
[1736835190365,1.59065,3172.8,3172.7,40.8]
[1736835194064,0.63138,3172.5,3172.4,2.53622182]
[1736835194266,3.83918,3172.5,3172.4,2.53622182]
[1736835194871,3.5238,3172.5,3172.3,1.24]
[1736835195069,0.31539,3172.4,3172.3,1.24]
[1736835195569,0.31539,3172.4,3172.3,42.04]
[1736835197869,0.31539,3172.4,3172.3,40.8]
[1736835199173,0.77339,3172.4,3172.3,40.8]
[1736835199976,0.458,3172.4,3171.9,1.24]
[1736835200174,0.458,3172.4,3171.5,5.74402182]
[1736835200175,0.9737,3172.3,3171.5,5.74402182]
[1736835200475,0.31547,3171.6,3171.5,5.74402182]
[1736835200776,0.31547,3171.6,3171.5,6.98402182]
[1736835200967,0.31546,3171.7,3171.5,47.78402182]
[1736835201168,0.31547,3171.6,3171.5,45.2478]
[1736835201374,0.77347,3171.6,3171.5,47.78402182]
[1736835201976,0.458,3171.6,3171.5,47.78402182]
[1736835202976,0.77347,3171.6,3171.5,47.78402182]
[1736835203278,0.458,3171.6,3171.5,47.78402182]
[1736835204072,0.31545,3171.8,3171.5,48.09949182]
[1736835204268,0.79023,3172.0,3171.7,0.31545]
[1736835204467,3.2078,3172.1,3171.9,2.53622182]
[1736835204675,3.2078,3172.1,3172.0,0.31543]
[1736835204973,0.316,3172.2,3172.0,0.31543]
[1736835204974,0.63141,3172.2,3172.0,0.31543]
[1736835205285,0.63141,3172.2,3172.0,40.8]
[1736835205473,0.31542,3172.1,3172.0,40.8]
[1736835206576,0.31548,3171.5,3171.4,1.241]
[1736835206776,0.3155,3171.3,3171.1,2.85174182]
[1736835206976,0.3155,3171.3,3171.2,1.241]
[1736835207483,1.2638,3171.3,3171.2,42.041]
[1736835208084,1.2638,3171.3,3171.2,40.8]
[1736835208284,1.2638,3171.3,3171.2,42.041]
[1736835208985,1.2638,3171.3,3171.2,40.8]
[1736835209175,4.4716,3171.3,3171.2,40.8]
[1736835211794,4.71062768,3171.3,3171.2,40.8]
[1736835212088,0.31557,3170.7,3170.5,3.78022182]
[1736835212289,1.4229,3170.6,3170.5,3.78022182]
[1736835212880,1.4229,3170.6,3170.5,4.09580182]
[1736835213088,0.9673,3170.6,3170.5,44.89580182]
[1736835213287,0.9673,3170.6,3170.5,43.65180182]
[1736835213589,0.9673,3170.6,3170.5,44.89580182]
[1736835213789,0.9673,3170.6,3170.5,43.65180182]
[1736835213990,0.79726,3170.8,3170.5,44.89580182]
[1736835214490,0.79726,3170.8,3170.6,1.244]
[1736835215890,0.31556,3170.7,3170.6,1.244]
[1736835216391,0.80006,3170.7,3170.6,1.244]
[1736835216586,0.80006,3170.7,3170.6,42.044]
[1736835217384,0.80006,3170.7,3170.6,40.8]
[1736835236103,4.00786,3170.7,3170.6,40.8]
[1736835240399,0.80006,3170.7,3170.6,40.8]
[1736835248903,0.31556,3170.7,3170.6,40.8]
[1736835249406,0.31556,3170.7,3170.6,41.99487323]
[1736835250911,3.52335,3170.8,3170.6,42.31043323]
[1736835251209,0.31554,3170.9,3170.7,0.31556]
[1736835251402,0.4607,3171.1,3170.8,2.52367464]
[1736835251707,0.31553,3171.0,3170.8,2.83921464]
[1736835252098,0.31553,3171.0,3170.9,40.8]
[1736835252701,4.01831,3171.2,3170.9,41.11553]
[1736835252901,4.01831,3171.2,3171.1,2.52367464]
[1736835253596,4.01831,3171.2,3171.1,43.32367464]
[1736835256308,0.81051,3171.2,3171.1,43.32367464]
[1736835260214,0.81051,3171.2,3171.1,40.8]
[1736835271316,0.81051,3171.2,3171.1,41.99462924]
[1736835272114,0.81051,3171.2,3171.1,40.8]
[1736835273008,0.495,3171.2,3170.5,1.19462924]
[1736835273218,3.52337,3170.6,3170.5,1.19462924]
[1736835274112,3.52337,3170.6,3170.5,41.99462924]
[1736835275519,3.52337,3170.6,3170.5,40.8]
[1736835281822,0.31557,3170.6,3170.5,40.8]
[1736835282219,3.52337,3170.6,3170.5,40.8]
[1736835284815,0.31557,3170.6,3170.5,40.8]
[1736835285021,3.52337,3170.6,3170.5,40.8]
[1736835295530,4.71875167,3170.6,3170.5,40.8]
[1736835297528,3.52337,3170.6,3170.5,40.8]
[1736835297934,4.71875167,3170.6,3170.5,40.8]
[1736835301236,4.95993153,3170.6,3170.5,40.8]
[1736835302025,0.78902,3170.3,3169.4,0.0178]
[1736835302225,4.64436153,3170.6,3169.4,0.2645]
[1736835302226,0.31568,3169.5,3169.4,0.2645]
[1736835302433,0.31568,3169.5,3169.4,1.45988167]
[1736835303144,0.31568,3169.5,3169.4,42.25988167]
[1736835305135,3.2078,3169.9,3169.4,42.25988167]
[1736835305343,3.2078,3169.9,3169.7,1.19538167]
[1736835305537,0.31561,3170.2,3170.0,0.31562]
[1736835305742,0.31561,3170.2,3170.1,1.46018167]
[1736835306540,0.31559,3170.4,3170.2,0.3156]
[1736835306743,3.2078,3170.8,3170.4,0.31558]
[1736835306934,0.31556,3170.7,3170.5,1.55658]
[1736835307129,3.52335,3170.8,3170.5,1.55657]
[1736835307438,3.52335,3170.8,3170.7,43.32392187]
[1736835307629,3.2078,3170.8,3170.7,43.32392187]
[1736835307835,3.2078,3171.2,3170.7,43.32392187]
[1736835308035,3.2078,3171.2,3171.1,2.52392187]
[1736835308036,3.52331,3171.2,3171.1,2.52392187]
[1736835308436,3.2078,3171.2,3171.1,2.52392187]
[1736835308635,3.2078,3171.2,3171.1,43.63944187]
[1736835309343,0.3155,3171.3,3171.1,43.32392187]
[1736835309641,3.2078,3171.6,3171.1,43.32392187]
[1736835309642,3.2078,3171.6,3171.2,1.241]
[1736835309937,0.31549,3171.4,3171.2,1.241]
[1736835310336,0.31549,3171.4,3171.3,40.8]
[1736835312242,0.31549,3171.4,3171.3,25.0]
[1736835312941,3.2078,3171.6,3171.3,25.0]
[1736835313143,0.31548,3171.5,3171.3,25.0]
[1736835313439,3.2078,3171.6,3171.3,25.3155]
[1736835313746,3.52327,3171.6,3171.3,25.0]
[1736835314848,3.2078,3171.6,3171.3,25.31549]
[1736835315144,3.2078,3171.6,3171.5,2.52392187]
[1736835315351,3.2078,3171.6,3171.5,2.83940187]
[1736835315747,3.2078,3171.6,3171.5,43.63940187]
[1736835318744,3.2078,3172.1,3171.9,0.31544]
[1736835319049,0.8014,3172.3,3171.9,1.241]
[1736835319446,0.8014,3172.3,3172.0,0.31543]
[1736835319742,0.3159,3172.5,3171.9,1.241]
[1736835319948,0.3159,3172.5,3172.4,2.52392187]
[1736835320147,0.63128,3172.5,3172.4,2.52392187]
[1736835320549,0.63128,3172.5,3172.4,43.32392187]
[1736835323952,0.31538,3172.5,3172.4,43.00802187]
[1736835328143,3.52318,3172.5,3172.4,40.8]
[1736835330751,0.31544,3171.9,3171.8,2.52392187]
[1736835330949,0.31545,3171.8,3171.7,1.24]
[1736835331157,0.77405,3171.8,3171.7,1.24]
[1736835331453,0.4586,3171.8,3171.5,2.52392187]
[1736835331653,0.31547,3171.6,3171.5,3.76392187]
[1736835331861,0.31548,3171.5,3171.4,1.24]
[1736835332057,3.2078,3171.6,3170.9,5.73172187]
[1736835332348,0.31553,3171.0,3170.9,5.73172187]
[1736835332748,0.31553,3171.0,3170.9,43.32392187]
[1736835333353,0.31553,3171.0,3170.9,40.8]
[1736835333550,0.80723,3171.0,3170.9,40.8]
[1736835337855,3.52332,3171.1,3170.9,43.32392187]
[1736835338055,3.52332,3171.1,3170.9,2.52392187]
[1736835338559,3.52332,3171.1,3171.0,40.8]
[1736835340458,0.31552,3171.1,3171.0,40.8]
[1736835342859,0.4683,3171.3,3171.0,40.8]
[1736835343156,3.2078,3171.5,3171.2,2.52392187]
[1736835343362,0.31549,3171.4,3171.2,2.52392187]
[1736835343770,0.31549,3171.4,3171.3,40.8]
[1736835347465,0.79909,3171.4,3171.3,40.8]
[1736835348563,3.2078,3171.5,3171.3,41.11549]
[1736835348767,3.2078,3171.5,3171.3,0.31549]
[1736835349260,3.2078,3171.5,3171.4,40.8]
[1736835349563,3.2078,3171.5,3171.4,41.11549]
[1736835350264,3.2078,3171.5,3171.4,40.8]
[1736835351762,3.52328,3171.5,3171.4,40.8]
[1736835354167,3.2078,3171.5,3171.4,40.8]
[1736835354461,3.52328,3171.5,3171.4,40.8]
[1736835355065,3.2078,3171.5,3171.4,40.8]
[1736835357164,0.31546,3171.7,3171.4,41.11549]
[1736835357360,0.31546,3171.7,3171.5,2.52392187]
[1736835358064,0.31546,3171.7,3171.6,40.8]
[1736835358265,1.24815,3171.8,3171.6,41.11547]
[1736835360064,0.31546,3171.7,3171.6,40.8]
[1736835360665,1.24815,3171.8,3171.6,41.11547]
[1736835360861,0.31546,3171.7,3171.6,40.8]